[Event "Chinese League Division-A 2024"]
[Site "Fuling Chongqing"]
[Date "2024.06.29"]
[Round "4.12"]
[White "Xu, Minghui"]
[Black "Wang, Zihang"]
[Result "1-0"]
[ECO "A13"]
[WhiteElo "2388"]
[BlackElo "2028"]
[Annotator "RC"]
[PlyCount "129"]
[EventDate "2024.06.28"]
[EventType "team-tourn"]
[EventCountry "CHN"]
[SourceTitle "playchess.com"]
[Source "ChessBase"]
[SourceQuality "1"]
[TimeControl "40/5400+30:1800+30"]

1. Nf3 {[%emt 0:00:09]} d5 {[%emt 0:00:29]} 2. c4 {[%emt 0:00:50]} e6 {[%emt 0:00:44]} 3. g3 {[%emt 0:00:16]} Nf6 {[%emt 0:00:45]} 4. Bg2 {[%emt 0:00:06]} dxc4 {[%emt 0:01:38]} 5. Qa4+ {[%emt 0:00:46]} Nbd7 {[%emt 0:00:55]} 6. Qxc4 {[%emt 0:01:19]} a6 {[%emt 0:00:11]} 7. Qc2 {[%emt 0:00:40]} c5 {[%emt 0:01:01]} 8. O-O {[%emt 0:01:23]} Qc7 {[%emt 0:01:13]} 9. d4 {[%emt 0:03:39]} b6 {[%emt 0:06:07]} 10. Bf4 {[%emt 0:36:52]} Bd6 {[%emt 0:03:37]} 11. Ne5 {[%emt 0:00:48]} Nd5 {[%emt 0:48:36]} 12. Nxd7 {[%emt 0:01:01]} Bxd7 {[%emt 0:01:36]} 13. Bxd6 {[%emt 0:00:32]} Qxd6 {[%emt 0:00:08]} 14. dxc5 {[%emt 0:01:05]} bxc5 {[%emt 0:06:28]} 15. Nc3 {[%emt 0:04:19]} Nb4 {[%emt 0:14:22]} 16. Rad1 {[%emt 0:00:25]} Qc7 {[%emt 0:06:50]} 17. Qc1 {[%emt 0:03:32]} Rc8 {[%emt 0:02:27]} 18. Qg5 {[%emt 0:05:07]} O-O {[%emt 0:00:36]} 19. a3 {[%emt 0:00:07]} Nc6 {[%emt 0:01:10]} 20. Ne4 {[%emt 0:04:50]} f6 {[%emt 0:01:00]} 21. Qxc5 {[%emt 0:00:23]} Ne5 {[%emt 0:00:29]} 22. b4 {[%emt 0:07:00]} Bc6 {[%emt 0:00:32]} 23. Rc1 {[%emt 0:03:45]} Qb8 {[%emt 0:00:32]} 24. Qe3 {[%emt 0:06:22]} Bd5 {[%emt 0:00:30]} 25. Nc5 {[%emt 0:00:53]} Bxg2 {[%emt 0:00:32]} 26. Kxg2 {[%emt 0:00:03]} Rfe8 {[%emt 0:00:29]} 27. Qe4 {[%emt 0:04:26]} Qb6 {[%emt 0:00:29]} 28. Rfd1 {[%emt 0:00:11]} Qc6 {[%emt 0:00:32]} 29. Qxc6 {[%emt 0:01:03]} Rxc6 {[%emt 0:00:04]} 30. f4 {[%emt 0:00:04]} Ng4 {[%emt 0:00:52]} 31. Rd7 {[%emt 0:00:22]} e5 {[%emt 0:00:31]} 32. h3 {[%emt 0:02:19]} Nh6 {[%emt 0:00:32]} 33. Kf2 {[%emt 0:02:56]} exf4 {[%emt 0:00:15]} 34. gxf4 {[%emt 0:00:02]} Ra8 {[%emt 0:00:32]} 35. Rg1 {[%emt 0:02:46]} g6 {[%emt 0:00:40]} 36. Rgd1 {[%emt 0:02:34]} a5 {[%emt 0:00:33]} 37. Rb7 {[%emt 0:02:12]} axb4 {[%emt 0:00:22]} 38. axb4 {[%emt 0:00:02]} Rf8 {[%emt 0:00:38]} 39. Rdd7 {[%emt 0:00:38]} Rf7 {[%emt 0:00:15]} 40. Ke3 {[%emt 0:00:00]} Rxd7 {[%emt 0:00:00]} 41. Rxd7 {[%emt 0:04:03]} Nf5+ {[%emt 0:11:01]} 42. Kd3 {[%emt 0:01:42]} Nd6 {[%emt 0:01:11]} 43. Kd4 {[%emt 0:03:29]} Rb6 {[%emt 0:04:16]} 44. Kd5 {[%emt 0:00:18]} Nb5 {[%emt 0:01:04]} 45. e4 {[%emt 0:03:36]} h5 {[%emt 0:01:00]} 46. h4 {[%emt 0:00:38]} g5 {[%emt 0:01:31]} 47. fxg5 {[%emt 0:01:46]} fxg5 {[%emt 0:00:05]} 48. hxg5 {[%emt 0:00:03]} h4 {[%emt 0:02:00]} 49. Ke5 {[%emt 0:03:41]} h3 {[%emt 0:03:01]} 50. Rd3 {[%emt 0:01:18]} Nd6 {[%emt 0:01:43]} 51. Rxh3 {[%emt 0:01:44]} Nf7+ {[%emt 0:00:12]} 52. Kf4 {[%emt 0:01:17]} Rxb4 {[%emt 0:00:07]} 53. Rb3 {[%emt 0:02:43]} Rc4 {[%emt 0:00:37]} 54. Rb8+ {[%emt 0:01:24]} Kh7 {[%emt 0:01:48]} 55. Nd7 {[%emt 0:02:28]} Nd6 {[%emt 0:01:10]} 56. Nf6+ {[%emt 0:00:34]} Kg6 {[%emt 0:00:18]} 57. Rg8+ {[%emt 0:06:51]} Kf7 {[%emt 0:00:06]} 58. Ke5 {[%emt 0:00:03]} Rxe4+ {[%emt 0:03:12]} 59. Kxd6 {[%emt 0:00:15]} Re6+ {[%emt 0:00:28]} 60. Kd5 {[%emt 0:00:08]} Ra6 {[%emt 0:00:55]} 61. Rc8 {[%emt 0:00:45]} Kg6 {[%emt 0:00:31]} 62. Ne4 {[%emt 0:00:10]} Kf5 {[%emt 0:00:13]} 63. Rf8+ {[%emt 0:00:21]} Kg4 {[%emt 0:00:20]} 64. Ke5 {[%emt 0:00:17]} Rb6 {[%emt 0:00:29]} 65. Rf4+ {[%emt 0:00:15]} 1-0

[Event "Chinese League Division-A 2024"]
[Site "Fuling Chongqing"]
[Date "2024.06.29"]
[Round "4.13"]
[White "Shen, Fuyan"]
[Black "Chen, Zhi"]
[Result "0-1"]
[ECO "A21"]
[WhiteElo "1830"]
[BlackElo "2164"]
[Annotator "RC"]
[PlyCount "157"]
[EventDate "2024.06.28"]
[EventType "team-tourn"]
[EventCountry "CHN"]
[SourceTitle "playchess.com"]
[Source "ChessBase"]
[SourceQuality "1"]
[TimeControl "40/5400+30:1800+30"]

1. c4 {[%emt 0:00:03]} e5 {[%emt 0:00:16]} 2. Nc3 {[%emt 0:00:07]} Bb4 {[%emt 0:00:13]} 3. Nd5 {[%emt 0:00:39]} a5 {[%emt 0:00:12]} 4. Nf3 {[%emt 0:00:19]} d6 {[%emt 0:00:31]} 5. a3 {[%emt 0:01:40]} Bc5 {[%emt 0:00:05]} 6. e3 {[%emt 0:00:20]} c6 {[%emt 0:00:10]} 7. d4 {[%emt 0:01:19]} Ba7 {[%emt 0:00:08]} 8. Nc3 {[%emt 0:00:22]} Nd7 {[%emt 0:00:08]} 9. dxe5 {[%emt 0:11:22]} Nxe5 {[%emt 0:02:53]} 10. Nxe5 {[%emt 0:04:12]} dxe5 {[%emt 0:00:06]} 11. Qxd8+ {[%emt 0:00:04]} Kxd8 {[%emt 0:00:06]} 12. Ne4 {[%emt 0:00:10]} Ke7 {[%emt 0:26:49]} 13. Bd2 {[%emt 0:01:24]} f5 {[%emt 0:11:11]} 14. Ng3 {[%emt 0:10:29]} Nf6 {[%emt 0:02:37]} 15. Bd3 {[%emt 0:14:54]} e4 {[%emt 0:03:06]} 16. Be2 {[%emt 0:08:11]} Be6 {[%emt 0:02:37]} 17. Bc3 {[%emt 0:00:22]} Bc5 {[%emt 0:03:41]} 18. O-O-O {[%emt 0:01:31]} a4 {[%emt 0:00:55]} 19. h4 {[%emt 0:04:42]} Rhd8 {[%emt 0:03:11]} 20. h5 {[%emt 0:01:04]} Kf7 {[%emt 0:09:23]} 21. Be5 {[%emt 0:07:46]} Nd7 {[%emt 0:03:00]} 22. Bc7 {[%emt 0:03:59]} Rdc8 {[%emt 0:00:55]} 23. Bd6 {[%emt 0:00:43]} Bxd6 {[%emt 0:00:42]} 24. Rxd6 {[%emt 0:00:02]} Ke7 {[%emt 0:00:25]} 25. Rd4 {[%emt 0:01:59]} Nc5 {[%emt 0:07:04]} 26. Kc2 {[%emt 0:01:13]} Nb3 {[%emt 0:01:34]} 27. Rdd1 {[%emt 0:00:15]} Ra5 {[%emt 0:01:08]} 28. f3 {[%emt 0:03:03]} exf3 {[%emt 0:02:00]} 29. gxf3 {[%emt 0:00:06]} Re5 {[%emt 0:01:51]} 30. Bd3 {[%emt 0:02:34]} Rd8 {[%emt 0:07:18]} 31. Kb1 {[%emt 0:04:26]} Rxe3 {[%emt 0:03:47]} 32. Nxf5+ {[%emt 0:00:14]} Bxf5 {[%emt 0:00:04]} 33. Bxf5 {[%emt 0:00:04]} Nd2+ {[%emt 0:00:48]} 34. Kc1 {[%emt 0:03:32]} Nb3+ {[%emt 0:00:29]} 35. Kb1 {[%emt 0:00:02]} Nd2+ {[%emt 0:00:04]} 36. Kc1 {[%emt 0:00:03]} Nxc4 {[%emt 0:05:54]} 37. Rxd8 {[%emt 0:00:14]} Kxd8 {[%emt 0:00:02]} 38. Rd1+ {[%emt 0:00:19]} Ke8 {[%emt 0:00:50]} 39. Bxh7 {[%emt 0:06:03]} Rxf3 {[%emt 0:00:12]} 40. Re1+ {[%emt 0:00:00]} Re3 {[%emt 0:00:00]} 41. Rg1 {[%emt 0:06:27]} Kf8 {[%emt 0:04:21]} 42. Rf1+ {[%emt 0:00:59]} Ke7 {[%emt 0:00:21]} 43. Rg1 {[%emt 0:00:56]} Kf6 {[%emt 0:07:20]} 44. Rf1+ {[%emt 0:00:24]} Kg5 {[%emt 0:01:34]} 45. Rf7 {[%emt 0:01:51]} Kh6 {[%emt 0:02:25]} 46. Bg6 {[%emt 0:02:46]} b5 {[%emt 0:00:47]} 47. Rc7 {[%emt 0:02:49]} Ne5 {[%emt 0:06:06]} 48. Bf5 {[%emt 0:17:21]} Re2 {[%emt 0:01:41]} 49. Kb1 {[%emt 0:01:32]} Rf2 {[%emt 0:02:41]} 50. Be4 {[%emt 0:01:12]} Rf4 {[%emt 0:00:24]} 51. Bc2 {[%emt 0:01:09]} Rf1+ {[%emt 0:06:47]} 52. Ka2 {[%emt 0:00:01]} Rh1 {[%emt 0:00:36]} 53. Bg6 {[%emt 0:02:31]} Nxg6 {[%emt 0:00:46]} 54. hxg6 {[%emt 0:00:01]} Rc1 {[%emt 0:00:12]} 55. Rd7 {[%emt 0:02:21]} Kxg6 {[%emt 0:00:07]} 56. Rd2 {[%emt 0:00:05]} Rc4 {[%emt 0:00:38]} 57. Rg2+ {[%emt 0:00:23]} Kf6 {[%emt 0:00:08]} 58. Rf2+ {[%emt 0:00:03]} Ke7 {[%emt 0:00:39]} 59. Rg2 {[%emt 0:00:16]} Kf7 {[%emt 0:00:05]} 60. Rf2+ {[%emt 0:00:08]} Kg8 {[%emt 0:00:04]} 61. Rg2 {[%emt 0:00:12]} Rc5 {[%emt 0:01:07]} 62. b3 {[%emt 0:00:38]} axb3+ {[%emt 0:00:10]} 63. Kxb3 {[%emt 0:00:01]} g5 {[%emt 0:00:14]} 64. a4 {[%emt 0:00:40]} bxa4+ {[%emt 0:00:09]} 65. Kxa4 {[%emt 0:00:03]} Kg7 {[%emt 0:00:27]} 66. Kb4 {[%emt 0:00:04]} Rd5 {[%emt 0:00:14]} 67. Rc2 {[%emt 0:00:41]} Kg6 {[%emt 0:00:09]} 68. Rxc6+ {[%emt 0:00:06]} Kh5 {[%emt 0:00:03]} 69. Rc8 {[%emt 0:00:30]} Kh4 {[%emt 0:00:07]} 70. Kc4 {[%emt 0:00:05]} Rd7 {[%emt 0:00:04]} 71. Rg8 {[%emt 0:00:37]} g4 {[%emt 0:00:06]} 72. Kc3 {[%emt 0:00:07]} Kh3 {[%emt 0:00:04]} 73. Rh8+ {[%emt 0:00:04]} Kg2 {[%emt 0:00:05]} 74. Rg8 {[%emt 0:00:02]} g3 {[%emt 0:00:05]} 75. Kc2 {[%emt 0:00:10]} Kf2 {[%emt 0:00:08]} 76. Rf8+ {[%emt 0:00:04]} Kg1 {[%emt 0:00:04]} 77. Rg8 {[%emt 0:00:04]} g2 {[%emt 0:00:05]} 78. Kc3 {[%emt 0:00:04]} Rh7 {[%emt 0:00:08]} 79. Kd4 {[%emt 0:01:17]} 0-1

[Event "Chinese League Division-A 2024"]
[Site "Fuling Chongqing"]
[Date "2024.06.29"]
[Round "4.14"]
[White "Ding, Yixin"]
[Black "Zhao, Yunqing"]
[Result "1/2-1/2"]
[ECO "B47"]
[WhiteElo "2397"]
[BlackElo "1986"]
[Annotator "RC"]
[PlyCount "83"]
[EventDate "2024.06.28"]
[EventType "team-tourn"]
[EventCountry "CHN"]
[SourceTitle "playchess.com"]
[Source "ChessBase"]
[SourceQuality "1"]
[TimeControl "40/5400+30:1800+30"]

1. e4 {[%emt 0:00:03]} c5 {[%emt 0:00:04]} 2. Nf3 {[%emt 0:00:05]} e6 {[%emt 0:00:05]} 3. d4 {[%emt 0:00:13]} cxd4 {[%emt 0:00:04]} 4. Nxd4 {[%emt 0:00:03]} Nc6 {[%emt 0:00:06]} 5. Nc3 {[%emt 0:00:33]} Qc7 {[%emt 0:00:06]} 6. g3 {[%emt 0:00:57]} a6 {[%emt 0:00:06]} 7. Bg2 {[%emt 0:00:04]} Nf6 {[%emt 0:00:05]} 8. O-O {[%emt 0:00:06]} Nxd4 {[%emt 0:00:05]} 9. Qxd4 {[%emt 0:00:06]} Bc5 {[%emt 0:00:05]} 10. Bf4 {[%emt 0:00:32]} d6 {[%emt 0:00:11]} 11. Qd2 {[%emt 0:00:58]} h6 {[%emt 0:00:26]} 12. Rad1 {[%emt 0:00:23]} e5 {[%emt 0:00:26]} 13. Be3 {[%emt 0:00:04]} Bb4 {[%emt 0:00:48]} 14. a3 {[%emt 0:00:22]} Bxc3 {[%emt 0:00:05]} 15. Qxc3 {[%emt 0:00:03]} Qxc3 {[%emt 0:00:07]} 16. bxc3 {[%emt 0:00:03]} Be6 {[%emt 0:00:25]} 17. Rxd6 {[%emt 0:01:35]} Rc8 {[%emt 0:00:14]} 18. Bd2 {[%emt 0:03:55]} Nd7 {[%emt 0:05:34]} 19. Rb1 {[%emt 0:11:49]} Ke7 {[%emt 0:03:18]} 20. Rd3 {[%emt 0:00:10]} Nc5 {[%emt 0:01:05]} 21. Re3 {[%emt 0:00:08]} Rhd8 {[%emt 0:00:38]} 22. Be1 {[%emt 0:00:21]} b5 {[%emt 0:05:17]} 23. f4 {[%emt 0:14:57]} f6 {[%emt 0:04:48]} 24. fxe5 {[%emt 0:21:48]} fxe5 {[%emt 0:00:06]} 25. c4 {[%emt 0:00:50]} Bxc4 {[%emt 0:12:53]} 26. Bc3 {[%emt 0:00:57]} Nd7 {[%emt 0:03:53]} 27. Rd1 {[%emt 0:02:26]} Nf6 {[%emt 0:03:07]} 28. Ree1 {[%emt 0:01:26]} Rxd1 {[%emt 0:09:15]} 29. Rxd1 {[%emt 0:01:03]} Be2 {[%emt 0:00:18]} 30. Bb4+ {[%emt 0:00:21]} Kf7 {[%emt 0:00:43]} 31. Rd2 {[%emt 0:02:26]} Bg4 {[%emt 0:04:13]} 32. h3 {[%emt 0:06:46]} Be6 {[%emt 0:01:12]} 33. c3 {[%emt 0:03:34]} Bd7 {[%emt 0:07:22]} 34. Kf2 {[%emt 0:06:24]} Bc6 {[%emt 0:05:21]} 35. Ke3 {[%emt 0:03:32]} Bb7 {[%emt 0:02:55]} 36. Bf3 {[%emt 0:09:21]} Rc7 {[%emt 0:06:40]} 37. Rd8 {[%emt 0:00:48]} Rc8 {[%emt 0:00:57]} 38. Rd6 {[%emt 0:00:25]} Rc6 {[%emt 0:01:18]} 39. Rd8 {[%emt 0:00:32]} Rc8 {[%emt 0:00:00]} 40. Rd6 {[%emt 0:00:00]} Rc6 {[%emt 0:00:00]} 41. Rd8 {[%emt 0:04:31]} Rc8 {[%emt 0:00:22]} 42. Rd6 {[%emt 0:02:49]} 1/2-1/2

[Event "Chinese League Division-A 2024"]
[Site "Fuling Chongqing"]
[Date "2024.06.29"]
[Round "4.15"]
[White "Du, Yuxin"]
[Black "Bai, Xue"]
[Result "1-0"]
[ECO "B53"]
[WhiteElo "1960"]
[BlackElo "2114"]
[Annotator "RC"]
[PlyCount "75"]
[EventDate "2024.06.28"]
[EventType "team-tourn"]
[EventCountry "CHN"]
[SourceTitle "playchess.com"]
[Source "ChessBase"]
[SourceQuality "1"]
[TimeControl "40/5400+30:1800+30"]

1. e4 {[%emt 0:00:02]} c5 {[%emt 0:00:06]} 2. Nf3 {[%emt 0:00:07]} d6 {[%emt 0:00:05]} 3. d4 {[%emt 0:00:49]} cxd4 {[%emt 0:00:06]} 4. Qd2 {[%emt 0:00:12]} d3 5. Qxd3 {[%emt 0:00:30]} Nc6 {[%emt 0:00:36]} 6. Qe3 {[%emt 0:00:19]} Nf6 {[%emt 0:00:49]} 7. Be2 {[%emt 0:00:33]} g6 {[%emt 0:00:24]} 8. O-O {[%emt 0:00:09]} Bg7 {[%emt 0:00:08]} 9. h3 {[%emt 0:00:31]} O-O {[%emt 0:00:46]} 10. Rd1 {[%emt 0:01:00]} Qc7 {[%emt 0:02:21]} 11. Nc3 {[%emt 0:03:05]} a6 {[%emt 0:00:19]} 12. Bd2 {[%emt 0:07:53]} e6 {[%emt 0:08:00]} 13. Qf4 {[%emt 0:34:37]} Ne5 {[%emt 0:11:54]} 14. Nxe5 {[%emt 0:02:41]} dxe5 {[%emt 0:00:05]} 15. Qh4 {[%emt 0:02:31]} Nd7 {[%emt 0:01:15]} 16. Be3 {[%emt 0:10:23]} b5 {[%emt 0:06:13]} 17. Qe7 {[%emt 0:04:26]} Qb7 {[%emt 0:05:17]} 18. Rd2 {[%emt 0:06:35]} Bf6 {[%emt 0:00:41]} 19. Qd6 {[%emt 0:00:37]} Re8 {[%emt 0:00:45]} 20. Rad1 {[%emt 0:17:09]} Be7 {[%emt 0:01:01]} 21. Qd3 {[%emt 0:00:07]} Nc5 {[%emt 0:01:52]} 22. Bxc5 {[%emt 0:00:06]} Bxc5 {[%emt 0:00:03]} 23. Bf1 {[%emt 0:02:29]} Qe7 {[%emt 0:03:40]} 24. Qf3 {[%emt 0:01:26]} Rb8 {[%emt 0:02:28]} 25. a3 {[%emt 0:01:16]} Bd4 {[%emt 0:04:44]} 26. b4 {[%emt 0:00:55]} Bb7 {[%emt 0:00:16]} 27. Ne2 {[%emt 0:00:24]} f5 {[%emt 0:02:24]} 28. Nxd4 {[%emt 0:00:13]} Bxe4 {[%emt 0:07:48]} 29. Qb3 {[%emt 0:00:18]} exd4 {[%emt 0:00:32]} 30. Rxd4 {[%emt 0:00:06]} Rb7 {[%emt 0:03:59]} 31. c4 {[%emt 0:00:34]} Kg7 {[%emt 0:02:36]} 32. cxb5 {[%emt 0:01:32]} axb5 {[%emt 0:08:37]} 33. Bxb5 {[%emt 0:00:39]} Qg5 {[%emt 0:02:43]} 34. Rxe4 {[%emt 0:01:23]} Rxb5 {[%emt 0:00:08]} 35. Rxe6 {[%emt 0:00:20]} Rxe6 {[%emt 0:00:39]} 36. Qxe6 {[%emt 0:00:05]} Kh6 {[%emt 0:00:43]} 37. Qc4 {[%emt 0:01:15]} f4 {[%emt 0:00:36]} 38. a4 {[%emt 0:01:14]} 1-0

[Event "Chinese League Division-A 2024"]
[Site "Fuling Chongqing"]
[Date "2024.06.29"]
[Round "4.16"]
[White "Wang, Yue"]
[Black "Wang, Hao"]
[Result "1/2-1/2"]
[ECO "C42"]
[WhiteElo "2652"]
[BlackElo "2702"]
[Annotator "TA"]
[PlyCount "61"]
[EventDate "2024.06.28"]
[EventType "team-tourn"]
[EventCountry "CHN"]
[SourceTitle "playchess.com"]
[Source "ChessBase"]
[SourceQuality "1"]
[TimeControl "40/5400+30:1800+30"]

{[%evp 13,61,9,27,24,10,8,11,9,41,22,49,26,32,19,30,18,20,16,13,7,15,18,16,13,20,22,20,20,19,4,2,8,7,2,11,13,9,8,10,2,6,0,0,0,0,0,0,0,5,0]} 1. e4 {[%emt 0:00:06]} e5 {[%emt 0:00:30]} 2. Nf3 {[%emt 0:00:41]} Nf6 {[%emt 0:00:07]} 3. Nxe5 {[%emt 0:01:19]} d6 {[%emt 0:00:08]} 4. Nf3 {[%emt 0:00:04]} Nxe4 {[%emt 0:00:06]} 5. Nc3 {[%emt 0:01:08]} Nxc3 {[%emt 0:01:57]} 6. dxc3 {[%emt 0:00:15]} Be7 {[%emt 0:00:08]} 7. Be3 {[%emt 0:01:50]} O-O {[%emt 0:02:29]} 8. Qd2 {[%emt 0:04:05]} Nd7 {[%emt 0:00:10]} 9. Bd3 {[%emt 0:01:04]} Nf6 {[%emt 0:01:37]} 10. O-O-O {[%emt 0:00:32]} c5 {[%emt 0:04:11]} 11. Rhe1 {[%emt 0:08:23]} Be6 {[%emt 0:05:18]} 12. Kb1 {[%emt 0:00:50]} Qa5 {[%emt 0:00:10]} 13. c4 {[%emt 0:00:22]} Qxd2 {[%emt 0:03:34]} 14. Bxd2 {[%emt 0:00:49]} h6 {[%emt 0:01:08] Wards off Ng5. The position is equal.} 15. Nh4 {[%emt 0:00:53]} Ng4 {[%emt 0:00:16][%csl LRf2,LRh2,LRh4] [#]} 16. Ng6 {[%emt 0:02:26]} Rfe8 {[%emt 0:00:12]} (16... fxg6 17. Rxe6) 17. Nxe7+ {[%emt 0:00:25]} Rxe7 {[%emt 0:00:08]} 18. Re2 {[%emt 0:00:28][%cal Be1e2,Be2d2,Bd2d6][%mdl 32]} Ne5 {[%emt 0:00:10]} 19. Bf4 {[%emt 0:00:59]} Nxd3 {[%emt 0:00:13]} 20. Rxd3 {[%emt 0:00:10]} (20. Bxd6 $2 {is the wrong capture.} Rd7 21. Bg3 (21. Rxd3 $2 {perishes.} Bxc4 22. Re7 Rxe7 $19) 21... Nb4 22. Rxd7 Bxd7 $19) 20... Rd7 $1 {[%emt 0:00:06]} 21. Red2 {[%emt 0:00:44]} (21. Bxd6 $2 {too greedy.} Bxc4 22. Re7 Rxe7 23. Bxe7 Bxd3 24. cxd3 b6 $19) 21... Bxc4 {[%emt 0:00:10]} 22. Rxd6 {[%emt 0:00:07]} Rxd6 {[%emt 0:00:07]} 23. Rxd6 $11 {[%emt 0:00:13][%mdl 4096] Endgame. KRB-KRB} Be6 {[%emt 0:00:09]} 24. b3 {[%emt 0:00:21]} Kf8 {[%emt 0:00:08]} 25. c4 {[%emt 0:01:20]} Ke7 {[%emt 0:02:53]} 26. Rd2 {[%emt 0:00:49]} b6 {[%emt 0:00:13]} 27. Kb2 {[%emt 0:00:40]} Rd8 {[%emt 0:00:15]} 28. Rxd8 {[%emt 0:00:34]} Kxd8 {[%emt 0:00:07]} 29. Kc3 {[%emt 0:00:06]} Bf5 {[%emt 0:00:23]} 30. h4 {[%emt 0:00:49]} Bb1 {[%emt 0:00:13]} 31. a4 {[%emt 0:00:16] Weighted Error Value: White=0.03 (flawless) /Black=0.03 (flawless) .  Inaccurate:     	---       	Black=1      OK:         	White=10    	Black=9      Best:        	---       	Black=1      Strong:       	---       	Black=1} 1/2-1/2

[Event "Chinese League Division-A 2024"]
[Site "Fuling Chongqing"]
[Date "2024.06.29"]
[Round "4.17"]
[White "Zhao, Jun"]
[Black "Dai, Changren"]
[Result "1/2-1/2"]
[ECO "C47"]
[WhiteElo "2538"]
[BlackElo "2502"]
[Annotator "TA"]
[PlyCount "53"]
[EventDate "2024.06.28"]
[EventType "team-tourn"]
[EventCountry "CHN"]
[SourceTitle "playchess.com"]
[Source "ChessBase"]
[SourceQuality "1"]
[TimeControl "40/5400+30:1800+30"]

{[%evp 17,53,5,-1,0,1,10,2,10,0,14,17,14,9,5,0,0,17,21,20,19,48,18,16,14,15,32,27,14,25,15,24,13,29,0,27,0,19,0]} 1. e4 {[%emt 0:00:06]} e5 {[%emt 0:00:04]} 2. Nf3 {[%emt 0:00:07]} Nc6 {[%emt 0:00:05]} 3. Nc3 {[%emt 0:00:06]} Nf6 {[%emt 0:00:10]} 4. d4 {[%emt 0:00:09]} exd4 {[%emt 0:00:28]} 5. Nxd4 {[%emt 0:00:09]} Bb4 {[%emt 0:00:03]} 6. Nxc6 {[%emt 0:00:16]} bxc6 {[%emt 0:00:04]} 7. Bd3 {[%emt 0:00:06]} d5 {[%emt 0:00:33]} 8. exd5 {[%emt 0:00:06]} O-O {[%emt 0:00:04]} 9. O-O {[%emt 0:00:09]} cxd5 {[%emt 0:00:02]} 10. h3 {[%emt 0:00:10] Dodges Bg4} Rb8 {[%emt 0:04:15]} 11. Be3 {[%emt 0:09:53]} c5 {[%emt 0:06:42]} ({Don't play} 11... d4 $6 12. Bxd4 Kh8 13. Be2 $16 (13. Bxa7 Ra8 $18)) 12. a3 {[%emt 0:00:00]} Bxc3 {[%emt 0:00:16]} 13. bxc3 {[%emt 0:00:00]} Qa5 {[%emt 0:02:03]} 14. Bf4 {[%emt 0:24:23][%cal Be3f4,Bf4e5,Be5f6,Bf6d4][%mdl 32]} Rb7 {[%emt 0:05:45][%cal Oc5c4]} 15. Be5 {[%emt 0:01:34] Threatening Bxf6. A strong pair of Bishops.} c4 {[%emt 0:07:12]} 16. Bxf6 {[%emt 0:16:37]} cxd3 {[%emt 0:00:11]} (16... gxf6 $5 17. Be2 Bf5 $11) 17. Bd4 {[%emt 0:00:19]} dxc2 {[%emt 0:11:05]} 18. Qxc2 {[%emt 0:00:05]} Qa6 {[%emt 0:01:10]} 19. Qd2 {[%emt 0:04:07]} (19. Rfb1 {seems wilder.} Rc7 20. Rb8 Re8 21. Qd2) 19... Qg6 {[%emt 0:01:44]} 20. Kh1 {[%emt 0:00:46]} Bf5 {[%emt 0:00:33]} 21. Rfe1 {[%emt 0:03:01]} h5 {[%emt 0:12:20]} 22. Qf4 {[%emt 0:02:57]} Be4 {[%emt 0:05:19]} 23. Rg1 {[%emt 0:00:05]} Qf5 {[%emt 0:01:11]} 24. Qg3 {[%emt 0:02:22]} Qg6 {[%emt 0:00:38]} 25. Qf4 {[%emt 0:00:42]} Qf5 {[%emt 0:00:07]} 26. Qg3 {[%emt 0:01:53]} Qg6 {[%emt 0:00:09]} 27. Qf4 {[%emt 0:00:24] Not much happened in this game.   Weighted Error Value: White=0.10 (very precise) /Black=0.06 (flawless) .  Inaccurate:     	White=1     	Black=1      OK:         	White=4     	Black=8} 1/2-1/2

[Event "Chinese League Division-A 2024"]
[Site "Fuling Chongqing"]
[Date "2024.06.29"]
[Round "4.18"]
[White "Wang, Shixu B"]
[Black "Pang, Tao"]
[Result "1/2-1/2"]
[ECO "D61"]
[WhiteElo "2422"]
[BlackElo "2495"]
[Annotator "TA"]
[PlyCount "48"]
[EventDate "2024.06.28"]
[EventType "team-tourn"]
[EventCountry "CHN"]
[SourceTitle "playchess.com"]
[Source "ChessBase"]
[SourceQuality "1"]
[TimeControl "40/5400+30:1800+30"]

{[%evp 15,48,27,28,18,25,27,25,14,21,22,20,14,25,19,16,-10,43,0,0,0,0,0,0,-17,-19,-24,-21,-47,-46,-39,0,-16,0,-39,0]} 1. d4 {[%emt 0:00:03]} d5 {[%emt 0:00:06]} 2. c4 {[%emt 0:00:12]} e6 {[%emt 0:00:03]} 3. Nc3 {[%emt 0:00:04]} Be7 {[%emt 0:00:04]} 4. Nf3 {[%emt 0:00:24]} Nf6 {[%emt 0:00:16]} 5. Bg5 {[%emt 0:00:38]} O-O {[%emt 0:00:34]} 6. e3 {[%emt 0:00:11]} h6 {[%emt 0:00:25]} 7. Bh4 {[%emt 0:00:07]} Nbd7 {[%emt 0:02:55]} 8. Qc2 {[%emt 0:00:55]} c5 {[%emt 0:02:00]} 9. dxc5 {[%emt 0:00:12]} Nxc5 {[%emt 0:11:25]} 10. cxd5 {[%emt 0:01:55]} Nxd5 {[%emt 0:07:22] [#] And now ...Nb4 would win.} 11. Bxe7 {[%emt 0:07:19] White has an edge.} Nxe7 {[%emt 0:01:00]} 12. Be2 {[%emt 0:01:41]} Qb6 {[%emt 0:07:53]} 13. O-O {[%emt 0:01:05]} Bd7 {[%emt 0:00:32][%cal Bc8d7,Bd7c6,Bc6d5][%mdl 32]} 14. Ne5 {[%emt 0:01:35]} Qc7 {[%emt 0:09:00]} 15. f4 {[%emt 0:30:34]} Nc6 {[%emt 0:12:04]} ({Black should play} 15... Rac8 $11) 16. Nxc6 {[%emt 0:07:54]} (16. Nb5 {keeps more tension.} Qb6 17. Nd6 Nxe5 18. fxe5 Na6 19. Qd2) 16... Bxc6 {[%emt 0:01:28]} 17. b4 {[%emt 0:03:34]} Nd7 {[%emt 0:00:27]} 18. b5 {[%emt 0:00:51]} Bd5 {[%emt 0:01:37]} 19. Rac1 {[%emt 0:06:20] [#] Nxd5 would now be deadly.} Qb6 {[%emt 0:02:10]} 20. Qd2 {[%emt 0:07:23]} Nf6 {[%emt 0:00:34]} 21. Na4 {[%emt 0:01:11]} Qd6 {[%emt 0:01:33]} 22. Nc3 {[%emt 0:00:25]} Qb6 {[%emt 0:00:35]} 23. Na4 {[%emt 0:00:06]} Qd6 {[%emt 0:00:03]} 24. Nc3 $1 {[%emt 0:00:05]} Qb6 {[%emt 0:00:51] Weighted Error Value: White=0.08 (flawless) /Black=0.11 (very precise) .  Mistake:       	---       	Black=1      Inaccurate:     	White=3     	Black=1      OK:         	White=8     	Black=5      Strong:       	White=1     	---} 1/2-1/2